[Event "CZE-ch U16 Girls 2020"]
[Site "Kouty nad Desnou"]
[Date "2020.03.12"]
[Round "7.5"]
[White "Maresova, Michaela"]
[Black "Leksova, Sona"]
[Result "0-1"]
[ECO "C21"]
[WhiteElo "1422"]
[BlackElo "1645"]
[Annotator "NA RC"]
[PlyCount "72"]
[EventDate "2020.03.07"]
[EventCountry "CZE"]
[SourceTitle "playchess.com"]
[Source "ChessBase"]
[SourceQuality "1"]
[TimeControl "5400+30"]

1. e4 {[%emt 0:00:00]} e5 {[%emt 0:00:00]} 2. d4 {[%emt 0:00:00]} exd4 {[%emt 0:01:32]} 3. Nf3 {[%emt 0:00:19]} Bb4+ {[%emt 0:02:06]} 4. Bd2 {[%emt 0:02:59]} Bxd2+ {[%emt 0:00:56]} 5. Nbxd2 {[%emt 0:02:03]} Nc6 {[%emt 0:02:31]} 6. Bc4 {[%emt 0:04:46]} d6 {[%emt 0:00:21]} 7. h3 {[%emt 0:01:38]} Nge7 {[%emt 0:03:28]} 8. Nb3 {[%emt 0:03:59]} Ne5 {[%emt 0:01:39]} 9. Be2 {[%emt 0:04:00]} Nxf3+ {[%emt 0:01:12]} 10. Bxf3 {[%emt 0:00:31]} c5 {[%emt 0:01:42]} 11. O-O {[%emt 0:04:15]} O-O {[%emt 0:01:12]} 12. Re1 {[%emt 0:01:52]} Nc6 {[%emt 0:01:10]} 13. Nd2 {[%emt 0:07:10]} Ne5 {[%emt 0:00:56]} 14. Be2 {[%emt 0:01:49]} Qg5 {[%emt 0:04:40]} 15. Kh1 {[%emt 0:06:16]} f5 {[%emt 0:01:56]} 16. exf5 {[%emt 0:03:36]} Bxf5 {[%emt 0:01:52]} 17. Nf3 {[%emt 0:04:15]} Nxf3 {[%emt 0:00:47]} 18. Bxf3 {[%emt 0:00:35]} Rab8 {[%emt 0:00:46]} 19. Re2 {[%emt 0:06:34]} Kh8 {[%emt 0:00:38]} 20. Qe1 {[%emt 0:03:41]} Bxh3 {[%emt 0:04:24]} 21. gxh3 {[%emt 0:06:11]} Rxf3 {[%emt 0:00:16]} 22. Re8+ {[%emt 0:01:21]} Rf8 {[%emt 0:00:15]} 23. Rxb8 {[%emt 0:01:19]} Rxb8 {[%emt 0:00:29]} 24. Qe2 {[%emt 0:01:22]} Qe5 {[%emt 0:01:02]} 25. Qf3 {[%emt 0:02:41]} d5 {[%emt 0:01:52]} 26. Kg1 {[%emt 0:02:31]} Kg8 {[%emt 0:01:02]} 27. Rd1 {[%emt 0:03:18]} Rf8 {[%emt 0:00:41]} 28. Qg4 {[%emt 0:03:53]} Qf5 {[%emt 0:00:40]} 29. Rd2 {[%emt 0:01:41]} Qxg4+ {[%emt 0:00:28]} 30. hxg4 {[%emt 0:00:07]} Rf4 {[%emt 0:00:12]} 31. f3 {[%emt 0:00:58]} Rxf3 {[%emt 0:00:15]} 32. Rg2 {[%emt 0:00:11]} Kf7 {[%emt 0:00:21]} 33. Rf2 {[%emt 0:01:22]} Rxf2 {[%emt 0:00:12]} 34. Kxf2 {[%emt 0:00:07]} Kf6 {[%emt 0:00:12]} 35. Kf3 {[%emt 0:00:16]} Ke5 {[%emt 0:00:37]} 36. Ke2 {[%emt 0:01:09]} Kf4 {[%emt 0:00:06]} 0-1

[Event "CZE-ch U16 Girls 2020"]
[Site "Kouty nad Desnou"]
[Date "2020.03.12"]
[Round "7.6"]
[White "Zilava, Anezka"]
[Black "Strnadova, Monika"]
[Result "1/2-1/2"]
[ECO "B30"]
[WhiteElo "1224"]
[BlackElo "1514"]
[Annotator "NA RC"]
[PlyCount "87"]
[EventDate "2020.03.07"]
[EventCountry "CZE"]
[SourceTitle "playchess.com"]
[Source "ChessBase"]
[SourceQuality "1"]
[TimeControl "5400+30"]

1. e4 {[%emt 0:00:00]} c5 {[%emt 0:00:00]} 2. Nf3 {[%emt 0:00:00]} Nc6 {[%emt 0:00:00]} 3. Bc4 {[%emt 0:00:15]} g6 {[%emt 0:00:23]} 4. c3 {[%emt 0:00:59]} Nf6 {[%emt 0:01:22]} 5. d3 {[%emt 0:01:15]} Bg7 {[%emt 0:00:20]} 6. Be3 {[%emt 0:02:48]} d6 {[%emt 0:00:16]} 7. Nbd2 {[%emt 0:00:30]} O-O {[%emt 0:00:54]} 8. h3 {[%emt 0:00:55]} a6 {[%emt 0:00:40]} 9. a4 {[%emt 0:01:37]} Bd7 {[%emt 0:02:25]} 10. d4 {[%emt 0:03:04]} cxd4 {[%emt 0:01:08]} 11. Nxd4 {[%emt 0:02:15]} Ne5 {[%emt 0:01:12]} 12. Be2 {[%emt 0:01:24]} b5 {[%emt 0:03:13]} 13. axb5 {[%emt 0:01:26]} axb5 {[%emt 0:01:17]} 14. O-O {[%emt 0:02:26]} Rb8 {[%emt 0:00:57]} 15. Qc2 {[%emt 0:06:21]} d5 {[%emt 0:06:33]} 16. Bf4 {[%emt 0:02:57]} Nxe4 {[%emt 0:07:06]} 17. Nxe4 {[%emt 0:01:01]} dxe4 {[%emt 0:00:08]} 18. Bxe5 {[%emt 0:00:16]} Bxe5 {[%emt 0:00:20]} 19. Qxe4 {[%emt 0:00:11]} Bxd4 {[%emt 0:02:38]} 20. Qxd4 {[%emt 0:00:24]} e5 {[%emt 0:01:00]} 21. Qb4 {[%emt 0:01:09]} Qg5 {[%emt 0:01:03]} 22. Kh2 {[%emt 0:02:00]} Bc6 {[%emt 0:02:31]} 23. Qg4 {[%emt 0:00:58]} Qd2 {[%emt 0:01:14]} 24. Rab1 {[%emt 0:01:36]} f5 {[%emt 0:00:18]} 25. Rfd1 {[%emt 0:00:39]} Qc2 {[%emt 0:02:22]} 26. Bd3 {[%emt 0:02:33]} Qxf2 {[%emt 0:00:30]} 27. Qe2 {[%emt 0:00:40]} Qxe2 {[%emt 0:03:07]} 28. Bxe2 {[%emt 0:00:04]} e4 {[%emt 0:00:15]} 29. Rd6 {[%emt 0:01:20]} Rbc8 {[%emt 0:00:22]} 30. Rbd1 {[%emt 0:00:49]} f4 {[%emt 0:00:38]} 31. Bg4 {[%emt 0:01:51]} Rc7 {[%emt 0:01:26]} 32. Be6+ {[%emt 0:01:58]} Kg7 {[%emt 0:00:51]} 33. Bd5 {[%emt 0:00:29]} Bxd5 {[%emt 0:01:06]} 34. R6xd5 {[%emt 0:00:30]} Rb7 {[%emt 0:01:38]} 35. Re5 {[%emt 0:02:03]} e3 {[%emt 0:02:03]} 36. g3 {[%emt 0:01:15]} b4 {[%emt 0:06:34]} 37. gxf4 {[%emt 0:00:58]} bxc3 {[%emt 0:04:06]} 38. bxc3 {[%emt 0:01:46]} Rb2+ {[%emt 0:01:05]} 39. Kg3 {[%emt 0:00:28]} e2 {[%emt 0:00:34]} 40. Re1 {[%emt 0:00:00]} Rc2 {[%emt 0:00:00]} 41. R5xe2 {[%emt 0:00:00]} Rxc3+ {[%emt 0:00:00]} 42. Re3 {[%emt 0:00:00]} Rc4 {[%emt 0:00:00]} 43. Re4 {[%emt 0:00:00]} Rc3+ {[%emt 0:00:00]} 44. R4e3 {[%emt 0:00:00]} 1/2-1/2

[Event "CZE-ch U16 Girls 2020"]
[Site "Kouty nad Desnou"]
[Date "2020.03.12"]
[Round "7.7"]
[White "Ruzickova, Ema"]
[Black "Vlachynska, Lilian"]
[Result "0-1"]
[ECO "C97"]
[WhiteElo "1409"]
[BlackElo "1224"]
[Annotator "NA RC"]
[PlyCount "110"]
[EventDate "2020.03.07"]
[EventCountry "CZE"]
[SourceTitle "playchess.com"]
[Source "ChessBase"]
[SourceQuality "1"]
[TimeControl "5400+30"]

1. e4 {[%emt 0:00:00]} e5 {[%emt 0:00:00]} 2. Nf3 {[%emt 0:00:00]} Nc6 {[%emt 0:00:00]} 3. Bb5 {[%emt 0:00:00]} a6 {[%emt 0:00:00]} 4. Ba4 {[%emt 0:00:02]} Nf6 {[%emt 0:00:01]} 5. O-O {[%emt 0:00:09]} Be7 {[%emt 0:00:07]} 6. Re1 {[%emt 0:00:15]} b5 {[%emt 0:00:05]} 7. Bb3 {[%emt 0:00:11]} O-O {[%emt 0:00:34]} 8. c3 {[%emt 0:00:38]} d6 {[%emt 0:00:17]} 9. h3 {[%emt 0:00:46]} Na5 {[%emt 0:00:49]} 10. Bc2 {[%emt 0:00:44]} c5 {[%emt 0:00:28]} 11. d4 {[%emt 0:01:30]} Qc7 {[%emt 0:00:30]} 12. Nbd2 {[%emt 0:01:15]} Bd7 {[%emt 0:01:06]} 13. Nf1 {[%emt 0:04:46]} Rac8 {[%emt 0:01:29]} 14. Bb1 {[%emt 0:03:41]} Nc6 {[%emt 0:05:28]} 15. Ng3 {[%emt 0:08:53]} g6 {[%emt 0:04:17]} 16. Be3 {[%emt 0:33:11]} Ne8 {[%emt 0:05:43]} 17. Ne2 {[%emt 0:23:04]} Ng7 {[%emt 0:09:53]} 18. Bg5 {[%emt 0:04:09]} Bxg5 {[%emt 0:01:02]} 19. Nxg5 {[%emt 0:00:42]} f6 {[%emt 0:00:37]} 20. Nf3 {[%emt 0:00:26]} Nd8 {[%emt 0:08:02]} 21. Qd2 {[%emt 0:03:32]} Nf7 {[%emt 0:03:33]} 22. Bd3 {[%emt 0:03:03]} f5 {[%emt 0:11:01]} 23. Ng3 {[%emt 0:00:38]} f4 {[%emt 0:03:25]} 24. Ne2 {[%emt 0:00:46]} cxd4 {[%emt 0:06:20]} 25. cxd4 {[%emt 0:00:27]} Qd8 {[%emt 0:01:38]} 26. d5 {[%emt 0:01:05]} Ng5 {[%emt 0:01:58]} 27. Nxg5 {[%emt 0:03:58]} Qxg5 {[%emt 0:00:13]} 28. Kh2 {[%emt 0:00:05]} Qh4 {[%emt 0:13:48]} 29. Ng1 {[%emt 0:01:20]} Nh5 {[%emt 0:03:21]} 30. Nf3 {[%emt 0:00:47]} Qf6 {[%emt 0:00:20]} 31. Be2 {[%emt 0:00:46]} Kh8 {[%emt 0:03:49]} 32. Rg1 {[%emt 0:00:52]} Rg8 {[%emt 0:01:24]} 33. g4 {[%emt 0:01:19]} fxg3+ {[%emt 0:00:32]} 34. fxg3 {[%emt 0:00:07]} Rcf8 {[%emt 0:02:30]} 35. Raf1 {[%emt 0:00:30]} Qd8 {[%emt 0:01:08]} 36. Ng5 {[%emt 0:01:25]} Qe7 {[%emt 0:00:35]} 37. Nf3 {[%emt 0:00:37]} g5 {[%emt 0:03:35]} 38. Ne1 {[%emt 0:02:10]} Nf6 {[%emt 0:02:05]} 39. Qe3 {[%emt 0:00:42]} h6 {[%emt 0:01:06]} 40. g4 {[%emt 0:00:00]} Qh7 {[%emt 0:00:00]} 41. Nf3 {[%emt 0:00:00]} Qxe4 {[%emt 0:00:00]} 42. Qxe4 {[%emt 0:00:00]} Nxe4 {[%emt 0:00:00]} 43. Rc1 {[%emt 0:00:00]} Rc8 {[%emt 0:00:00]} 44. Kg2 {[%emt 0:00:00]} Nf6 {[%emt 0:00:00]} 45. Kg3 {[%emt 0:00:00]} Rxc1 {[%emt 0:00:00]} 46. Rxc1 {[%emt 0:00:00]} Rc8 {[%emt 0:00:00]} 47. Rd1 {[%emt 0:00:00]} Rc2 {[%emt 0:00:00]} 48. Bd3 {[%emt 0:00:00]} Rxb2 {[%emt 0:00:00]} 49. Nxe5 {[%emt 0:00:00]} dxe5 {[%emt 0:00:00]} 50. Bf5 {[%emt 0:00:00]} Kg8 {[%emt 0:00:00]} 51. d6 {[%emt 0:01:36]} Kf8 {[%emt 0:00:00]} 52. Re1 {[%emt 0:01:28]} Bxf5 {[%emt 0:00:00]} 53. gxf5 {[%emt 0:00:49]} e4 {[%emt 0:00:00]} 54. Rc1 {[%emt 0:01:37]} Rd2 {[%emt 0:00:00]} 55. Rc8+ {[%emt 0:00:20]} Ne8 {[%emt 0:00:00]} 0-1

[Event "CZE-ch U16 Girls 2020"]
[Site "Kouty nad Desnou"]
[Date "2020.03.12"]
[Round "7.8"]
[White "Saskova, Renata"]
[Black "Habinova, Alice"]
[Result "0-1"]
[ECO "B22"]
[WhiteElo "1191"]
[BlackElo "1474"]
[Annotator "NA"]
[PlyCount "80"]
[EventDate "2020.03.07"]
[EventCountry "CZE"]
[SourceTitle "playchess.com"]
[Source "ChessBase"]
[SourceQuality "1"]
[TimeControl "5400+30"]

1. e4 c5 2. c3 d5 3. exd5 Qxd5 4. d4 Nf6 5. Be3 {[%emt 0:01:56]} cxd4 {[%emt 0:00:51]} 6. cxd4 {[%emt 0:00:13]} Nc6 {[%emt 0:01:23]} 7. Nf3 {[%emt 0:01:42]} Bg4 8. Be2 e6 9. O-O Be7 10. Nc3 Qd6 11. Rc1 O-O 12. Qd2 Rfd8 13. Rfd1 Rac8 14. h3 Bh5 15. a3 Nd5 16. Nxd5 Qxd5 17. b4 a6 18. Qd3 Bg6 19. Qd2 b5 20. Bd3 Bxd3 21. Qxd3 h6 {[%emt 0:33:17]} 22. Kf1 {[%emt 1:12:13]} Bf6 {[%emt 0:04:19]} 23. Rc5 {[%emt 0:02:32]} Qd7 {[%emt 0:02:47]} 24. Qe4 {[%emt 0:09:26]} Ne7 {[%emt 0:04:34]} 25. Rd2 Nd5 26. Rdc2 Be7 27. Rxc8 Rxc8 28. Rxc8+ Qxc8 29. Ne5 Qc3 30. Qd3 Qa1+ 31. Ke2 Nc3+ 32. Kf3 Qxa3 33. Bd2 Bxb4 34. Nc6 a5 35. Nxb4 axb4 36. Bxc3 bxc3 37. Ke2 Qb2+ 38. Kd1 b4 39. Qc2 Qxc2+ 40. Kxc2 Kf8 0-1

[Event "CZE-ch U16 Girls 2020"]
[Site "Kouty nad Desnou"]
[Date "2020.03.12"]
[Round "7.9"]
[White "Merinska, Julie"]
[Black "Londinova, Jasmina Marie"]
[Result "0-1"]
[ECO "B00"]
[WhiteElo "1182"]
[BlackElo "1155"]
[Annotator "NA RC"]
[PlyCount "74"]
[EventDate "2020.03.07"]
[EventCountry "CZE"]
[SourceTitle "playchess.com"]
[Source "ChessBase"]
[SourceQuality "1"]
[TimeControl "5400+30"]

1. e4 {[%emt 0:00:00]} b6 {[%emt 0:00:00]} 2. d4 {[%emt 0:00:44]} Bb7 {[%emt 0:00:00]} 3. Nc3 {[%emt 0:01:03]} e6 {[%emt 0:00:34]} 4. a3 {[%emt 0:01:15]} Nf6 {[%emt 0:00:53]} 5. Bg5 {[%emt 0:01:41]} h6 {[%emt 0:00:25]} 6. Bxf6 {[%emt 0:02:03]} Qxf6 {[%emt 0:00:10]} 7. Nf3 {[%emt 0:02:05]} c5 {[%emt 0:02:02]} 8. d5 {[%emt 0:15:12]} exd5 {[%emt 0:02:15]} 9. exd5 {[%emt 0:03:50]} Bd6 {[%emt 0:02:34]} 10. Bc4 {[%emt 0:16:29]} O-O {[%emt 0:03:49]} 11. O-O {[%emt 0:02:09]} Qg6 {[%emt 0:01:29]} 12. Re1 {[%emt 0:06:25]} Na6 {[%emt 0:03:08]} 13. Nb5 {[%emt 0:08:17]} Nc7 {[%emt 0:02:40]} 14. Re3 {[%emt 0:05:44]} Rfe8 {[%emt 0:04:00]} 15. Nxc7 {[%emt 0:07:39]} Bxc7 {[%emt 0:00:21]} 16. Bd3 {[%emt 0:01:41]} Qd6 {[%emt 0:02:37]} 17. Qe2 {[%emt 0:04:50]} Rxe3 {[%emt 0:01:25]} 18. Qxe3 {[%emt 0:00:18]} Bxd5 {[%emt 0:02:01]} 19. Be4 {[%emt 0:02:12]} Bxe4 {[%emt 0:01:01]} 20. Qxe4 {[%emt 0:00:16]} Rb8 {[%emt 0:00:56]} 21. Re1 {[%emt 0:00:38]} Qf8 {[%emt 0:00:31]} 22. g3 {[%emt 0:03:15]} Rd8 {[%emt 0:00:48]} 23. Qd5 {[%emt 0:01:08]} Qd6 {[%emt 0:01:27]} 24. Qxd6 {[%emt 0:00:24]} Bxd6 {[%emt 0:00:06]} 25. Nd2 {[%emt 0:00:28]} Kf8 {[%emt 0:00:36]} 26. Kf1 {[%emt 0:00:27]} Re8 {[%emt 0:00:34]} 27. Rd1 {[%emt 0:00:25]} Bc7 {[%emt 0:00:26]} 28. h3 {[%emt 0:01:27]} f5 {[%emt 0:01:09]} 29. g4 {[%emt 0:01:15]} g6 {[%emt 0:00:31]} 30. Nf3 {[%emt 0:01:12]} d6 {[%emt 0:01:01]} 31. Rd5 {[%emt 0:02:16]} fxg4 {[%emt 0:05:16]} 32. hxg4 {[%emt 0:01:43]} Re4 {[%emt 0:02:04]} 33. Nh2 {[%emt 0:02:06]} Kg7 {[%emt 0:03:09]} 34. f3 {[%emt 0:01:13]} Re5 {[%emt 0:00:21]} 35. Rxe5 {[%emt 0:00:18]} dxe5 {[%emt 0:00:06]} 36. Ke2 {[%emt 0:00:20]} e4 {[%emt 0:00:27]} 37. fxe4 {[%emt 0:00:28]} Bxh2 {[%emt 0:00:07]} 0-1